[Event "*** SCC Grand Prix: Titled Tuesday Blitz"]
[Site "Chess.com"]
[Date "2020.08.11"]
[Round "4"]
[White "HonzaVykouk"]
[Black "IngOscarArdila"]
[Result "1-0"]
[WhiteElo "2585"]
[BlackElo "2202"]
[TimeControl "180+1"]
[EndTime "10:39:34 PDT"]
[Termination "HonzaVykouk won by resignation"]

1. e4 {[%clk 0:02:28.5]} 1... e5 {[%clk 0:02:59.2]} 2. Nf3 {[%clk 0:02:27.4]}
2... Nf6 {[%clk 0:02:59.3]} 3. Nxe5 {[%clk 0:02:26.5]} 3... d6 {[%clk
0:02:59.1]} 4. Nc4 {[%clk 0:02:27.1]} 4... Nxe4 {[%clk 0:02:58.9]} 5. Qe2 {[%clk
0:02:28]} 5... Qe7 {[%clk 0:02:58.3]} 6. Ne3 {[%clk 0:02:28.4]} 6... Nf6 {[%clk
0:02:56.3]} 7. b3 {[%clk 0:02:28.1]} 7... g6 {[%clk 0:02:50.6]} 8. Bb2 {[%clk
0:02:23.5]} 8... Bg7 {[%clk 0:02:50.4]} 9. Nd5 {[%clk 0:02:24.1]} 9... Nxd5
{[%clk 0:02:17.1]} 10. Bxg7 {[%clk 0:02:17.9]} 10... Rg8 {[%clk 0:02:12.7]} 11.
Qxe7+ {[%clk 0:02:13.2]} 11... Nxe7 {[%clk 0:02:11.8]} 12. Bb2 {[%clk
0:02:14.1]} 12... Bf5 {[%clk 0:02:09.9]} 13. Na3 {[%clk 0:02:12.6]} 13... Nd7
{[%clk 0:02:07.3]} 14. O-O-O {[%clk 0:02:12.9]} 14... c6 {[%clk 0:02:05.7]} 15.
Nc4 {[%clk 0:02:08.9]} 15... Nc8 {[%clk 0:01:49.3]} 16. Re1+ {[%clk 0:02:06.8]}
16... Kd8 {[%clk 0:01:47.1]} 17. Ne3 {[%clk 0:02:06.3]} 17... Be6 {[%clk
0:01:46.1]} 18. f4 {[%clk 0:02:07.2]} 18... f5 {[%clk 0:01:37.7]} 19. c4 {[%clk
0:01:44.6]} 19... Re8 {[%clk 0:01:36.1]} 20. g3 {[%clk 0:01:30.9]} 20... Nc5
{[%clk 0:01:34]} 21. Kc2 {[%clk 0:01:28.7]} 21... Kc7 {[%clk 0:01:29.8]} 22. Bg2
{[%clk 0:01:28.2]} 22... Bf7 {[%clk 0:01:23.3]} 23. Re2 {[%clk 0:01:27.3]} 23...
a5 {[%clk 0:01:20.3]} 24. a3 {[%clk 0:01:24.1]} 24... Nb6 {[%clk 0:01:17.7]} 25.
Rhe1 {[%clk 0:01:16.5]} 25... Ne4 {[%clk 0:01:16.7]} 26. d3 {[%clk 0:01:15.3]}
26... Nc5 {[%clk 0:01:15.4]} 27. b4 {[%clk 0:00:56.6]} 27... axb4 {[%clk
0:01:14.8]} 28. axb4 {[%clk 0:00:57.5]} 28... Ncd7 {[%clk 0:01:03.8]} 29. Nd1
{[%clk 0:00:53.2]} 29... Rxe2+ {[%clk 0:01:01.9]} 30. Rxe2 {[%clk 0:00:54.1]}
30... Re8 {[%clk 0:01:01.8]} 31. Rxe8 {[%clk 0:00:53.5]} 31... Bxe8 {[%clk
0:01:02.7]} 32. Ne3 {[%clk 0:00:54.2]} 32... Bf7 {[%clk 0:00:58.6]} 33. h3
{[%clk 0:00:52.2]} 33... Be6 {[%clk 0:00:57.4]} 34. Bf3 {[%clk 0:00:51.7]} 34...
Na4 {[%clk 0:00:46.4]} 35. Ba1 {[%clk 0:00:48.4]} 35... Nab6 {[%clk 0:00:30.2]}
36. g4 {[%clk 0:00:47.7]} 36... fxg4 {[%clk 0:00:27.2]} 37. hxg4 {[%clk
0:00:47.5]} 37... d5 {[%clk 0:00:25.2]} 38. f5 {[%clk 0:00:47.6]} 38... gxf5
{[%clk 0:00:25]} 39. gxf5 {[%clk 0:00:47.4]} 39... Bf7 {[%clk 0:00:25]} 40. c5
{[%clk 0:00:41.2]} 40... Nc8 {[%clk 0:00:21.4]} 41. f6 {[%clk 0:00:39]} 41...
Kd8 {[%clk 0:00:19.6]} 42. Nf5 {[%clk 0:00:38.4]} 42... Ke8 {[%clk 0:00:18.6]}
43. Bg4 {[%clk 0:00:36.2]} 43... Na7 {[%clk 0:00:16.6]} 44. Nd6+ {[%clk
0:00:33.8]} 44... Kf8 {[%clk 0:00:16.4]} 45. Bxd7 {[%clk 0:00:33.4]} 45... Nb5
{[%clk 0:00:16.3]} 46. Nxb5 {[%clk 0:00:33]} 46... cxb5 {[%clk 0:00:17.2]} 47.
Bc8 {[%clk 0:00:32.5]} 1-0

[Event "*** SCC Grand Prix: Titled Tuesday Blitz"]
[Site "Chess.com"]
[Date "2020.08.11"]
[Round "4"]
[White "vova-79"]
[Black "AJSC02"]
[Result "1-0"]
[WhiteElo "2454"]
[BlackElo "2259"]
[TimeControl "180+1"]
[EndTime "10:39:34 PDT"]
[Termination "vova-79 won on time"]

1. d4 {[%clk 0:03:00.9]} 1... Nf6 {[%clk 0:02:59.9]} 2. c4 {[%clk 0:03:00.3]}
2... g6 {[%clk 0:03:00.2]} 3. Nc3 {[%clk 0:03:00.3]} 3... Bg7 {[%clk 0:03:00.4]}
4. Nf3 {[%clk 0:03:00.8]} 4... O-O {[%clk 0:02:59.7]} 5. g3 {[%clk 0:03:00.8]}
5... d5 {[%clk 0:02:59.7]} 6. cxd5 {[%clk 0:02:59.7]} 6... Nxd5 {[%clk
0:02:59.6]} 7. Bg2 {[%clk 0:03:00.6]} 7... Nxc3 {[%clk 0:02:57.7]} 8. bxc3
{[%clk 0:03:01.5]} 8... c5 {[%clk 0:02:58]} 9. O-O {[%clk 0:03:00.1]} 9... Nc6
{[%clk 0:02:56.9]} 10. e3 {[%clk 0:02:56.9]} 10... Bf5 {[%clk 0:02:42]} 11. Ba3
{[%clk 0:02:54.8]} 11... b6 {[%clk 0:02:38]} 12. dxc5 {[%clk 0:02:24.7]} 12...
Bxc3 {[%clk 0:02:13.6]} 13. Rc1 {[%clk 0:02:22.4]} 13... Bb4 {[%clk 0:02:08]}
14. Bxb4 {[%clk 0:02:18.3]} 14... Nxb4 {[%clk 0:02:07.7]} 15. Nd4 {[%clk
0:01:43.6]} 15... Bd3 {[%clk 0:01:37.8]} 16. Re1 {[%clk 0:01:32.3]} 16... bxc5
{[%clk 0:01:27.2]} 17. Rxc5 {[%clk 0:01:31]} 17... Rc8 {[%clk 0:01:11.5]} 18.
Rxc8 {[%clk 0:01:06.8]} 18... Qxc8 {[%clk 0:01:11.4]} 19. Qa4 {[%clk 0:01:07.2]}
19... Qc3 {[%clk 0:00:53.4]} 20. Rd1 {[%clk 0:00:53.3]} 20... a6 {[%clk
0:00:41]} 21. a3 {[%clk 0:00:51.8]} 21... Nc2 {[%clk 0:00:25.7]} 22. Rxd3 {[%clk
0:00:37.7]} 22... Qxd3 {[%clk 0:00:11.3]} 23. Qxc2 {[%clk 0:00:36.9]} 23... Qxa3
{[%clk 0:00:10.6]} 24. Bf1 {[%clk 0:00:27.8]} 24... Qa1 {[%clk 0:00:07.5]} 25.
Kg2 {[%clk 0:00:27.2]} 25... Rb8 {[%clk 0:00:07.1]} 26. Qc4 {[%clk 0:00:18.8]}
26... Rb2 {[%clk 0:00:04.3]} 27. Qxa6 {[%clk 0:00:17]} 27... Qc1 {[%clk
0:00:01.8]} 28. Qa8+ {[%clk 0:00:08.1]} 28... Kg7 {[%clk 0:00:01.2]} 29. Qe4
{[%clk 0:00:08.6]} 29... Qd2 {[%clk 0:00:01.5]} 30. Qe5+ {[%clk 0:00:07.3]} 1-0

[Event "*** SCC Grand Prix: Titled Tuesday Blitz"]
[Site "Chess.com"]
[Date "2020.08.11"]
[Round "4"]
[White "MartinMatthiesen"]
[Black "hongnhung1234"]
[Result "0-1"]
[WhiteElo "2430"]
[BlackElo "2263"]
[TimeControl "180+1"]
[EndTime "10:39:35 PDT"]
[Termination "hongnhung1234 won by checkmate"]

1. d4 {[%clk 0:03:00.9]} 1... Nf6 {[%clk 0:02:52.3]} 2. c4 {[%clk 0:03:00.3]}
2... c5 {[%clk 0:02:51.3]} 3. d5 {[%clk 0:03:00.1]} 3... b5 {[%clk 0:02:51.3]}
4. cxb5 {[%clk 0:03:00]} 4... a6 {[%clk 0:02:51.2]} 5. bxa6 {[%clk 0:03:00]}
5... g6 {[%clk 0:02:51.8]} 6. Nc3 {[%clk 0:02:59.6]} 6... Bg7 {[%clk 0:02:52.2]}
7. e4 {[%clk 0:02:59.7]} 7... O-O {[%clk 0:02:52.6]} 8. a7 {[%clk 0:02:53.2]}
8... Rxa7 {[%clk 0:02:51.8]} 9. Nf3 {[%clk 0:02:52.6]} 9... d6 {[%clk
0:02:44.4]} 10. Be2 {[%clk 0:02:45.1]} 10... Ba6 {[%clk 0:02:41.3]} 11. O-O
{[%clk 0:02:43.6]} 11... Qa5 {[%clk 0:02:34.7]} 12. Nd2 {[%clk 0:02:37.4]} 12...
Bxe2 {[%clk 0:02:32.2]} 13. Qxe2 {[%clk 0:02:36.8]} 13... Nbd7 {[%clk
0:02:31.9]} 14. a4 {[%clk 0:02:26.8]} 14... Rb8 {[%clk 0:02:29.4]} 15. Ra3
{[%clk 0:02:24.9]} 15... Qb4 {[%clk 0:02:20.7]} 16. Rb3 {[%clk 0:02:19.4]} 16...
Qa5 {[%clk 0:02:07.6]} 17. Rxb8+ {[%clk 0:02:07.7]} 17... Nxb8 {[%clk
0:02:08.5]} 18. Nc4 {[%clk 0:02:07.3]} 18... Qb4 {[%clk 0:02:05.6]} 19. Bd2
{[%clk 0:02:02.9]} 19... Rb7 {[%clk 0:01:52.5]} 20. Ra1 {[%clk 0:01:38.9]} 20...
Nbd7 {[%clk 0:01:31.8]} 21. a5 {[%clk 0:01:26]} 21... Ne5 {[%clk 0:01:22.3]} 22.
Nxe5 {[%clk 0:01:24.6]} 22... dxe5 {[%clk 0:01:23.2]} 23. Ra2 {[%clk 0:01:23.7]}
23... Ra7 {[%clk 0:01:17.5]} 24. Nb5 {[%clk 0:01:19.2]} 24... Qb3 {[%clk
0:01:15.7]} 25. Nxa7 {[%clk 0:00:55]} 25... Qxa2 {[%clk 0:01:14.4]} 26. f3
{[%clk 0:00:51]} 26... Qxb2 {[%clk 0:01:03.7]} 27. Kf1 {[%clk 0:00:37.9]} 27...
c4 {[%clk 0:00:59.1]} 28. Be1 {[%clk 0:00:35.4]} 28... c3 {[%clk 0:00:57.2]} 29.
Qc4 {[%clk 0:00:31.1]} 29... c2 {[%clk 0:00:53.9]} 30. Bd2 {[%clk 0:00:29.6]}
30... h5 {[%clk 0:00:43.2]} 31. Nc6 {[%clk 0:00:24.5]} 31... Kh7 {[%clk
0:00:41.8]} 32. a6 {[%clk 0:00:23.4]} 32... Bh6 {[%clk 0:00:38]} 33. Nb4 {[%clk
0:00:09.7]} 33... Bxd2 {[%clk 0:00:32.8]} 34. Nxc2 {[%clk 0:00:10.2]} 34... Qc1+
{[%clk 0:00:29.3]} 35. Ke2 {[%clk 0:00:09.9]} 35... Ba5 {[%clk 0:00:20.5]} 36.
a7 {[%clk 0:00:09.7]} 36... Qd2+ {[%clk 0:00:19.2]} 37. Kf1 {[%clk 0:00:07.9]}
37... Qc1+ {[%clk 0:00:18.6]} 38. Kf2 {[%clk 0:00:07.4]} 38... Be1+ {[%clk
0:00:18.9]} 39. Ke2 {[%clk 0:00:07]} 39... Qd2+ {[%clk 0:00:18.5]} 40. Kf1
{[%clk 0:00:06.9]} 40... Qf2# {[%clk 0:00:19]} 0-1

[Event "*** SCC Grand Prix: Titled Tuesday Blitz"]
[Site "Chess.com"]
[Date "2020.08.11"]
[Round "4"]
[White "jamalm2"]
[Black "Resignify"]
[Result "0-1"]
[WhiteElo "1837"]
[BlackElo "2201"]
[TimeControl "180+1"]
[EndTime "10:39:36 PDT"]
[Termination "Resignify won on time"]

1. e4 {[%clk 0:02:51.9]} 1... d6 {[%clk 0:02:58.5]} 2. d4 {[%clk 0:02:50.7]}
2... Nf6 {[%clk 0:02:58.7]} 3. Nc3 {[%clk 0:02:48.8]} 3... g6 {[%clk 0:02:58.6]}
4. h3 {[%clk 0:02:47.5]} 4... Bg7 {[%clk 0:02:57.6]} 5. Bf4 {[%clk 0:02:47.1]}
5... c6 {[%clk 0:02:53.8]} 6. Nf3 {[%clk 0:02:40.8]} 6... Qa5 {[%clk 0:02:51.4]}
7. Qd2 {[%clk 0:02:39.3]} 7... Nbd7 {[%clk 0:02:27.7]} 8. Be2 {[%clk 0:02:17.7]}
8... O-O {[%clk 0:02:18.4]} 9. O-O {[%clk 0:02:13.9]} 9... e5 {[%clk 0:02:14.6]}
10. dxe5 {[%clk 0:02:10.3]} 10... dxe5 {[%clk 0:02:14.8]} 11. Bh6 {[%clk
0:02:08.5]} 11... Re8 {[%clk 0:02:09.7]} 12. Bxg7 {[%clk 0:02:07.3]} 12... Kxg7
{[%clk 0:02:09.8]} 13. Qg5 {[%clk 0:02:06.8]} 13... h6 {[%clk 0:02:03]} 14. Qg3
{[%clk 0:02:00.7]} 14... Nh5 {[%clk 0:01:51.6]} 15. Qh2 {[%clk 0:01:59.1]} 15...
Qb4 {[%clk 0:01:45.5]} 16. Nh4 {[%clk 0:01:46.5]} 16... Nf4 {[%clk 0:01:39.5]}
17. Qg3 {[%clk 0:01:41.6]} 17... Nf8 {[%clk 0:01:28.5]} 18. Bf3 {[%clk 0:01:30]}
18... Qxb2 {[%clk 0:01:24.4]} 19. Ne2 {[%clk 0:01:26.8]} 19... Nxe2+ {[%clk
0:01:19.7]} 20. Bxe2 {[%clk 0:01:26.5]} 20... Qxc2 {[%clk 0:01:14.7]} 21. Bf3
{[%clk 0:01:16]} 21... Qd2 {[%clk 0:01:10.6]} 22. Nf5+ {[%clk 0:00:57.2]} 22...
Bxf5 {[%clk 0:01:05.4]} 23. exf5 {[%clk 0:00:56.2]} 23... Qf4 {[%clk 0:01:03.6]}
24. fxg6 {[%clk 0:00:47.7]} 24... fxg6 {[%clk 0:00:53.2]} 25. Rae1 {[%clk
0:00:33.7]} 25... Rad8 {[%clk 0:00:43.6]} 26. Bg4 {[%clk 0:00:27.7]} 26... Qxg3
{[%clk 0:00:38.4]} 27. fxg3 {[%clk 0:00:26.5]} 27... h5 {[%clk 0:00:38.2]} 28.
Bd1 {[%clk 0:00:12.6]} 28... Nd7 {[%clk 0:00:27.1]} 29. Bb3 {[%clk 0:00:04.6]}
29... Nf6 {[%clk 0:00:24]} 30. g4 {[%clk 0:00:02.7]} 30... hxg4 {[%clk
0:00:24.9]} 31. hxg4 {[%clk 0:00:02.5]} 31... Nd5 {[%clk 0:00:25.2]} 0-1

[Event "*** SCC Grand Prix: Titled Tuesday Blitz"]
[Site "Chess.com"]
[Date "2020.08.11"]
[Round "4"]
[White "UCantHandleDenker"]
[Black "AGW2016"]
[Result "1-0"]
[WhiteElo "2568"]
[BlackElo "2316"]
[TimeControl "180+1"]
[EndTime "10:39:42 PDT"]
[Termination "UCantHandleDenker won by resignation"]

1. Nf3 {[%clk 0:02:59.6]} 1... Nf6 {[%clk 0:02:59.5]} 2. g3 {[%clk 0:02:59]}
2... g6 {[%clk 0:02:55.6]} 3. Bg2 {[%clk 0:02:58.6]} 3... Bg7 {[%clk 0:02:56.1]}
4. O-O {[%clk 0:02:59.5]} 4... O-O {[%clk 0:02:55.8]} 5. c4 {[%clk 0:02:59.6]}
5... d6 {[%clk 0:02:56.1]} 6. Nc3 {[%clk 0:02:59.3]} 6... c5 {[%clk 0:02:55.7]}
7. d3 {[%clk 0:02:53.3]} 7... Nc6 {[%clk 0:02:55.4]} 8. a3 {[%clk 0:02:53.4]}
8... a6 {[%clk 0:02:53.3]} 9. Rb1 {[%clk 0:02:53.6]} 9... Rb8 {[%clk 0:02:53.8]}
10. b4 {[%clk 0:02:53]} 10... cxb4 {[%clk 0:02:54.3]} 11. axb4 {[%clk
0:02:53.9]} 11... b5 {[%clk 0:02:54.9]} 12. cxb5 {[%clk 0:02:54.5]} 12... axb5
{[%clk 0:02:55.2]} 13. Bd2 {[%clk 0:02:55.4]} 13... Bd7 {[%clk 0:02:53.7]} 14.
Qc1 {[%clk 0:02:55.3]} 14... d5 {[%clk 0:02:43.8]} 15. Bh6 {[%clk 0:02:52.9]}
15... e5 {[%clk 0:02:42.4]} 16. Bg5 {[%clk 0:02:42.1]} 16... d4 {[%clk
0:02:22.8]} 17. Ne4 {[%clk 0:02:37]} 17... Rc8 {[%clk 0:02:21.4]} 18. Qd2 {[%clk
0:02:32.4]} 18... Bf5 {[%clk 0:02:12.7]} 19. Nc5 {[%clk 0:02:13.2]} 19... Qd6
{[%clk 0:02:01.7]} 20. Rfc1 {[%clk 0:02:09.5]} 20... Nd5 {[%clk 0:01:51.6]} 21.
Nh4 {[%clk 0:01:57.3]} 21... Be6 {[%clk 0:01:43.8]} 22. Nxe6 {[%clk 0:01:56.2]}
22... Qxe6 {[%clk 0:01:44]} 23. Bxd5 {[%clk 0:01:55.3]} 23... Qxd5 {[%clk
0:01:42.8]} 24. Rc5 {[%clk 0:01:55.9]} 24... Qd7 {[%clk 0:01:35.3]} 25. Rxb5
{[%clk 0:01:53.9]} 25... Ne7 {[%clk 0:01:11.8]} 26. Bxe7 {[%clk 0:01:50.6]}
26... Qxe7 {[%clk 0:01:12.1]} 27. Ra5 {[%clk 0:01:42.1]} 27... e4 {[%clk
0:01:11.2]} 28. dxe4 {[%clk 0:01:31.8]} 28... Qxe4 {[%clk 0:01:11.1]} 29. Qd3
{[%clk 0:01:32.1]} 29... Qb7 {[%clk 0:00:42.8]} 30. Rb5 {[%clk 0:01:10.4]} 30...
Qa6 {[%clk 0:00:26.6]} 31. Rc5 {[%clk 0:01:09.1]} 31... Qe6 {[%clk 0:00:26.8]}
32. Rxc8 {[%clk 0:01:06.8]} 32... Rxc8 {[%clk 0:00:27.7]} 33. b5 {[%clk
0:01:06.8]} 33... Rc3 {[%clk 0:00:26.6]} 34. Qd2 {[%clk 0:00:55.1]} 34... Qe4
{[%clk 0:00:26.7]} 35. Rb2 {[%clk 0:00:40]} 35... d3 {[%clk 0:00:26.9]} 36. exd3
{[%clk 0:00:33.6]} 36... Rxd3 {[%clk 0:00:26.7]} 37. Qe2 {[%clk 0:00:34]} 37...
Qd5 {[%clk 0:00:13.9]} 38. Rb1 {[%clk 0:00:31.2]} 38... Rd2 {[%clk 0:00:12]} 39.
Qe8+ {[%clk 0:00:28.5]} 39... Bf8 {[%clk 0:00:12.6]} 40. b6 {[%clk 0:00:24.1]}
40... Qc5 {[%clk 0:00:12.9]} 41. Qe3 {[%clk 0:00:23]} 41... Qxe3 {[%clk
0:00:09]} 42. fxe3 {[%clk 0:00:23.9]} 42... Rd8 {[%clk 0:00:06.3]} 43. b7 {[%clk
0:00:23.4]} 43... Bd6 {[%clk 0:00:06.4]} 44. Nf3 {[%clk 0:00:23]} 44... Kf8
{[%clk 0:00:04.3]} 45. Nd4 {[%clk 0:00:22.8]} 45... Ke7 {[%clk 0:00:03.7]} 46.
Nc6+ {[%clk 0:00:22.6]} 1-0

[Event "*** SCC Grand Prix: Titled Tuesday Blitz"]
[Site "Chess.com"]
[Date "2020.08.11"]
[Round "4"]
[White "DonBroca"]
[Black "KyronGriffith"]
[Result "0-1"]
[WhiteElo "2111"]
[BlackElo "2351"]
[TimeControl "180+1"]
[EndTime "10:39:42 PDT"]
[Termination "KyronGriffith won by resignation"]

1. e4 {[%clk 0:02:39.1]} 1... c6 {[%clk 0:02:59.5]} 2. d4 {[%clk 0:02:38.2]}
2... d5 {[%clk 0:03:00.1]} 3. Nd2 {[%clk 0:02:35.2]} 3... dxe4 {[%clk
0:02:59.9]} 4. Nxe4 {[%clk 0:02:36.1]} 4... Nf6 {[%clk 0:02:59.6]} 5. Ng3 {[%clk
0:02:36]} 5... h5 {[%clk 0:02:57.5]} 6. h4 {[%clk 0:02:30.2]} 6... c5 {[%clk
0:02:55.2]} 7. Nf3 {[%clk 0:02:28.3]} 7... Bg4 {[%clk 0:02:54.8]} 8. Bb5+ {[%clk
0:02:24.2]} 8... Nc6 {[%clk 0:02:51.8]} 9. c4 {[%clk 0:02:05.8]} 9... cxd4
{[%clk 0:02:44.7]} 10. Qa4 {[%clk 0:01:55.8]} 10... Bxf3 {[%clk 0:02:37.3]} 11.
gxf3 {[%clk 0:01:55.5]} 11... Qc7 {[%clk 0:02:25.3]} 12. Bf4 {[%clk 0:01:40.3]}
12... e5 {[%clk 0:02:14]} 13. Bg5 {[%clk 0:01:35.6]} 13... Nd7 {[%clk
0:01:54.1]} 14. O-O-O {[%clk 0:01:08.9]} 14... Nc5 {[%clk 0:01:40.8]} 15. Bxc6+
{[%clk 0:01:03.6]} 15... Qxc6 {[%clk 0:01:37.4]} 16. Qxc6+ {[%clk 0:01:02.8]}
16... bxc6 {[%clk 0:01:38.3]} 17. Rhe1 {[%clk 0:01:03.1]} 17... f6 {[%clk
0:01:30.9]} 18. b4 {[%clk 0:00:31.2]} 18... Ne6 {[%clk 0:01:02.7]} 19. Bd2
{[%clk 0:00:27.3]} 19... a5 {[%clk 0:01:01.7]} 20. f4 {[%clk 0:00:25.6]} 20...
axb4 {[%clk 0:00:47.7]} 21. fxe5 {[%clk 0:00:24.8]} 21... Rxa2 {[%clk
0:00:44.2]} 22. exf6 {[%clk 0:00:24]} 22... Kf7 {[%clk 0:00:43.6]} 23. fxg7
{[%clk 0:00:19.7]} 23... Bxg7 {[%clk 0:00:44.5]} 24. Nf5 {[%clk 0:00:19.4]}
24... Rha8 {[%clk 0:00:30.3]} 25. Bxb4 {[%clk 0:00:18]} 25... Ra1+ {[%clk
0:00:15.5]} 26. Kd2 {[%clk 0:00:17.1]} 26... R8a2+ {[%clk 0:00:13.8]} 27. Kd3
{[%clk 0:00:16.7]} 27... Nf4+ {[%clk 0:00:14.4]} 28. Ke4 {[%clk 0:00:16.5]}
28... Rxd1 {[%clk 0:00:13.5]} 29. Rxd1 {[%clk 0:00:16.5]} 29... Rxf2 {[%clk
0:00:14.2]} 30. Nxd4 {[%clk 0:00:14.4]} 30... Ng6 {[%clk 0:00:11.9]} 31. Nxc6
{[%clk 0:00:13.9]} 31... Rf4+ {[%clk 0:00:12.5]} 32. Kd5 {[%clk 0:00:13.9]}
32... Rxh4 {[%clk 0:00:10.8]} 33. Ne5+ {[%clk 0:00:13.9]} 33... Bxe5 {[%clk
0:00:09.1]} 34. Rf1+ {[%clk 0:00:14.2]} 34... Bf4 {[%clk 0:00:08.3]} 35. Bd2
{[%clk 0:00:13.7]} 35... Kf6 {[%clk 0:00:08.6]} 36. Ke4 {[%clk 0:00:13.6]} 36...
Kg5 {[%clk 0:00:08.5]} 37. Bxf4+ {[%clk 0:00:13.7]} 37... Rxf4+ {[%clk
0:00:09.4]} 38. Rxf4 {[%clk 0:00:13.6]} 38... Nxf4 {[%clk 0:00:10.3]} 39. c5
{[%clk 0:00:14.2]} 39... Ne6 {[%clk 0:00:10.8]} 40. Ke5 {[%clk 0:00:14.4]} 40...
Nc7 {[%clk 0:00:11.7]} 41. Kd6 {[%clk 0:00:13.5]} 41... Na6 {[%clk 0:00:12.4]}
42. c6 {[%clk 0:00:13.8]} 42... h4 {[%clk 0:00:12.4]} 43. Kd5 {[%clk 0:00:13.1]}
43... h3 {[%clk 0:00:12.6]} 44. Kc4 {[%clk 0:00:14]} 44... h2 {[%clk 0:00:13]}
45. Kb5 {[%clk 0:00:14.9]} 45... Nc7+ {[%clk 0:00:13.2]} 46. Kb6 {[%clk
0:00:15.4]} 46... Ne6 {[%clk 0:00:13.9]} 47. c7 {[%clk 0:00:15.5]} 47... Nxc7
{[%clk 0:00:14.5]} 48. Kxc7 {[%clk 0:00:16]} 48... h1=Q {[%clk 0:00:14.6]} 0-1

[Event "*** SCC Grand Prix: Titled Tuesday Blitz"]
[Site "Chess.com"]
[Date "2020.08.11"]
[Round "4"]
[White "IriBu"]
[Black "Dinamo81"]
[Result "1-0"]
[WhiteElo "2488"]
[BlackElo "2639"]
[TimeControl "180+1"]
[EndTime "10:39:43 PDT"]
[Termination "IriBu won on time"]

1. e4 {[%clk 0:03:00.9]} 1... e6 {[%clk 0:02:55.8]} 2. d4 {[%clk 0:02:57.5]}
2... d5 {[%clk 0:02:55.9]} 3. Nc3 {[%clk 0:02:57.6]} 3... Bb4 {[%clk 0:02:55.6]}
4. Ne2 {[%clk 0:02:55.9]} 4... dxe4 {[%clk 0:02:33.1]} 5. a3 {[%clk 0:02:55.6]}
5... Bxc3+ {[%clk 0:02:16.8]} 6. Nxc3 {[%clk 0:02:56.5]} 6... Nc6 {[%clk
0:02:17]} 7. Bb5 {[%clk 0:02:53.3]} 7... Bd7 {[%clk 0:02:12.8]} 8. Nxe4 {[%clk
0:02:29.9]} 8... a6 {[%clk 0:02:07.8]} 9. Be2 {[%clk 0:02:23.1]} 9... Bc8 {[%clk
0:01:38.7]} 10. Be3 {[%clk 0:02:19.1]} 10... Nge7 {[%clk 0:01:37.4]} 11. Qd2
{[%clk 0:02:10.8]} 11... Nf5 {[%clk 0:01:30.7]} 12. O-O-O {[%clk 0:02:09.2]}
12... b6 {[%clk 0:01:14.2]} 13. g4 {[%clk 0:02:05.9]} 13... Nxe3 {[%clk
0:01:10.1]} 14. Qxe3 {[%clk 0:02:02.5]} 14... O-O {[%clk 0:01:06.9]} 15. h4
{[%clk 0:01:56.9]} 15... Bb7 {[%clk 0:01:03.2]} 16. f3 {[%clk 0:01:53.4]} 16...
Ne7 {[%clk 0:00:58.6]} 17. Ng5 {[%clk 0:01:47.6]} 17... h6 {[%clk 0:00:33.6]}
18. Nh3 {[%clk 0:01:09.5]} 18... Nd5 {[%clk 0:00:27.5]} 19. Qf2 {[%clk
0:01:09.8]} 19... c5 {[%clk 0:00:27.1]} 20. dxc5 {[%clk 0:00:46.5]} 20... Qc7
{[%clk 0:00:23.4]} 21. cxb6 {[%clk 0:00:43.9]} 21... Nxb6 {[%clk 0:00:22.8]} 22.
h5 {[%clk 0:00:39.9]} 22... Rfc8 {[%clk 0:00:20.5]} 23. Rd2 {[%clk 0:00:38.1]}
23... Nc4 {[%clk 0:00:19.3]} 24. Bxc4 {[%clk 0:00:37.8]} 24... Qxc4 {[%clk
0:00:20.2]} 25. Kb1 {[%clk 0:00:35]} 25... Bd5 {[%clk 0:00:19.6]} 26. b3 {[%clk
0:00:30.6]} 26... Rab8 {[%clk 0:00:20]} 27. Qd4 {[%clk 0:00:16.8]} 27... Qc6
{[%clk 0:00:13.1]} 28. Rf1 {[%clk 0:00:09.1]} 28... Bxb3 {[%clk 0:00:07.3]} 29.
cxb3 {[%clk 0:00:09.1]} 29... Rxb3+ {[%clk 0:00:08.1]} 30. Rb2 {[%clk
0:00:09.5]} 30... Rxa3 {[%clk 0:00:07.3]} 31. g5 {[%clk 0:00:05.8]} 31... Ra4
{[%clk 0:00:07.4]} 32. Qd3 {[%clk 0:00:03.5]} 32... Rh4 {[%clk 0:00:04.2]} 33.
gxh6 {[%clk 0:00:02.9]} 33... Rxh3 {[%clk 0:00:03.5]} 34. Rg1 {[%clk 0:00:03.5]}
1-0

[Event "*** SCC Grand Prix: Titled Tuesday Blitz"]
[Site "Chess.com"]
[Date "2020.08.11"]
[Round "4"]
[White "Enriquack"]
[Black "vpsetter"]
[Result "0-1"]
[WhiteElo "2335"]
[BlackElo "2638"]
[TimeControl "180+1"]
[EndTime "10:39:43 PDT"]
[Termination "vpsetter won by resignation"]

1. e4 {[%clk 0:03:00.9]} 1... c5 {[%clk 0:02:58.2]} 2. Nf3 {[%clk 0:03:00.9]}
2... d6 {[%clk 0:02:56.2]} 3. d4 {[%clk 0:03:00.8]} 3... cxd4 {[%clk 0:02:56.6]}
4. Nxd4 {[%clk 0:03:01.7]} 4... Nf6 {[%clk 0:02:57]} 5. Nc3 {[%clk 0:03:02.3]}
5... a6 {[%clk 0:02:57.2]} 6. Bg5 {[%clk 0:03:02.4]} 6... e6 {[%clk 0:02:55.2]}
7. f4 {[%clk 0:02:59.8]} 7... Qc7 {[%clk 0:02:51.4]} 8. Qf3 {[%clk 0:02:58.8]}
8... b5 {[%clk 0:02:46.7]} 9. Bxf6 {[%clk 0:02:52.7]} 9... gxf6 {[%clk
0:02:46.6]} 10. O-O-O {[%clk 0:02:44.4]} 10... b4 {[%clk 0:02:32.2]} 11. Nce2
{[%clk 0:02:40.5]} 11... Nd7 {[%clk 0:02:23.3]} 12. f5 {[%clk 0:02:38.3]} 12...
e5 {[%clk 0:02:20.8]} 13. Nb3 {[%clk 0:01:51.8]} 13... a5 {[%clk 0:02:19.2]} 14.
Kb1 {[%clk 0:01:51.7]} 14... a4 {[%clk 0:02:17]} 15. Nd2 {[%clk 0:01:52]} 15...
h5 {[%clk 0:02:14.6]} 16. Nc1 {[%clk 0:01:46.5]} 16... Nc5 {[%clk 0:01:59.3]}
17. Nc4 {[%clk 0:01:41.7]} 17... Ba6 {[%clk 0:01:40.8]} 18. Ne3 {[%clk
0:01:39.6]} 18... Bb7 {[%clk 0:01:34]} 19. Nd5 {[%clk 0:01:37.7]} 19... Bxd5
{[%clk 0:01:33.5]} 20. Rxd5 {[%clk 0:01:37.3]} 20... b3 {[%clk 0:01:07.7]} 21.
cxb3 {[%clk 0:01:30.6]} 21... Bh6 {[%clk 0:00:59.5]} 22. Bb5+ {[%clk 0:01:21.4]}
22... Ke7 {[%clk 0:00:58.5]} 23. Nd3 {[%clk 0:01:16]} 23... axb3 {[%clk
0:00:39.9]} 24. Nxc5 {[%clk 0:01:08.1]} 24... bxa2+ {[%clk 0:00:39.8]} 25. Ka1
{[%clk 0:01:07.9]} 25... dxc5 {[%clk 0:00:39.9]} 26. Rd7+ {[%clk 0:01:06.6]}
26... Qxd7 {[%clk 0:00:40]} 27. Bxd7 {[%clk 0:01:07.5]} 27... Kxd7 {[%clk
0:00:34.8]} 28. Qd3+ {[%clk 0:01:06.1]} 28... Ke7 {[%clk 0:00:31.7]} 29. Qd5
{[%clk 0:01:01.1]} 29... Rhc8 {[%clk 0:00:24.4]} 30. Rd1 {[%clk 0:00:54.7]}
30... Kf8 {[%clk 0:00:19.1]} 31. Qb7 {[%clk 0:00:46.1]} 31... Rcb8 {[%clk
0:00:09.5]} 32. Qd7 {[%clk 0:00:34.6]} 32... Be3 {[%clk 0:00:07.1]} 33. Qd6+
{[%clk 0:00:27.2]} 33... Kg7 {[%clk 0:00:07.3]} 34. Rd3 {[%clk 0:00:20.6]} 34...
Rxb2 {[%clk 0:00:05.1]} 0-1